bitfinex/quotes_SOLUSD_20251127
["timestamp","ask_amount","ask_price","bid_price","bid_amount"]
[1764269473712,3.08,143.08,143.04,9.39847571]
[1764269473998,3.73,143.08,143.04,9.39847571]
[1764269474371,3.73,143.08,143.05,1.70742426]
[1764269474674,3.08,143.08,143.06,1.70742426]
[1764269475176,3.73,143.08,143.05,9.39757117]
[1764269476698,3.73,143.08,143.05,8.69757117]
[1764269477085,3.73,143.08,143.04,18.17762863]
[1764269477086,0.93432314,143.07,143.04,6.99103014]
[1764269477286,0.93432314,143.07,143.04,1.70742426]
[1764269477493,0.65,143.06,143.03,1.70742426]
[1764269477700,3.08,143.05,143.04,1.70742426]
[1764269478202,3.08,143.05,143.03,9.3987712]
[1764269478400,3.08,143.05,143.03,6.99134694]
[1764269478584,3.08,143.05,143.03,8.6987712]
[1764269478787,0.28432314,143.04,143.01,0.7]
[1764269478988,10.72058727,143.05,143.02,1.70742426]
[1764269478989,3.73,143.05,143.02,1.70742426]
[1764269479202,3.08,143.05,143.03,1.70742426]
[1764269479406,3.36432314,143.05,143.04,2.40742426]
[1764269479594,3.36432314,143.05,143.04,1.70742426]
[1764269479899,0.28432314,143.07,143.04,2.40742426]
[1764269480080,3.08,143.05,143.04,0.7]
[1764269480401,3.08,143.05,143.04,1.70742426]
[1764269481900,3.08,143.05,143.04,2.40742426]
[1764269482687,0.28432314,143.07,143.04,2.40742426]
[1764269482887,3.08,143.06,143.04,9.39809528]
[1764269484004,3.08,143.06,143.05,1.70742426]
[1764269485286,0.28432314,143.1,143.05,9.397987]
[1764269485492,0.28432314,143.1,143.08,1.70742426]
[1764269485493,3.36432314,143.09,143.08,1.70742426]
[1764269486100,3.22216157,143.09,143.08,1.70742426]
[1764269486501,3.36432314,143.09,143.08,1.70742426]
[1764269487695,3.36432314,143.09,143.07,8.69700098]
[1764269489217,9.6308444,143.08,143.02,0.7]
[1764269489530,9.6308444,143.08,143.03,1.70742426]
[1764269489812,0.65,143.07,143.04,1.70742426]
[1764269489990,3.08,143.06,143.04,1.70742426]
[1764269490191,3.36432314,143.06,143.04,1.70742426]
[1764269491304,0.93432314,143.05,143.02,6.99202908]
[1764269491509,0.93432314,143.05,143.01,1.70742426]
[1764269491812,0.93432314,143.05,143.02,1.70742426]
[1764269492398,0.93432314,143.05,143.02,8.69938513]
[1764269492600,0.93432314,143.05,143.02,1.70742426]
[1764269492805,7.92502192,143.05,143.02,1.70742426]
[1764269493689,7.9249426,143.05,143.02,1.70742426]
[1764269493884,0.28432314,143.05,143.03,1.70742426]
[1764269494084,0.28432314,143.05,143.03,2.40742426]
[1764269494298,3.08,143.06,143.04,1.70742426]
[1764269494504,3.36432314,143.06,143.05,1.70742426]
[1764269495313,3.36432314,143.06,143.04,2.40742426]
[1764269495497,3.36432314,143.06,143.04,9.39841484]
[1764269495820,3.36432314,143.06,143.05,1.70742426]
[1764269496014,3.36432314,143.06,143.04,9.39841484]
[1764269497620,3.36432314,143.06,143.05,1.70742426]
[1764269497814,3.36432314,143.06,143.05,2.40742426]
[1764269497815,3.08,143.06,143.05,2.40742426]
[1764269498501,3.08,143.06,143.05,10.36049123]
[1764269500496,3.08,143.06,143.05,9.66049123]
[1764269501720,3.08,143.06,143.05,10.37049123]
[1764269505196,16.45102557,143.08,143.05,10.37049123]
[1764269505403,3.36432314,143.07,143.05,10.37049123]
[1764269505808,3.36432314,143.07,143.05,9.66049123]
[1764269506008,3.36432314,143.07,143.05,10.37049123]
[1764269507713,3.08,143.07,143.06,3.37992849]
[1764269508325,3.36432314,143.09,143.06,3.37992849]
[1764269508624,3.36432314,143.09,143.07,0.71]
[1764269508834,3.36432314,143.09,143.07,3.37992849]
[1764269509334,3.08,143.09,143.08,2.66992849]
[1764269509513,3.08,143.09,143.06,0.71]
[1764269509840,3.08,143.09,143.08,2.66992849]
[1764269510310,3.08,143.09,143.08,3.37992849]
[1764269511602,3.08,143.09,143.08,10.36902549]
[1764269515424,3.08,143.09,143.08,2.66992849]
[1764269515722,3.08,143.09,143.08,9.65902549]
[1764269516301,3.08,143.09,143.08,10.36902549]
[1764269516498,1000.0,143.14,143.08,30.5116965]
[1764269516702,3.08,143.13,143.12,9.65707214]
[1764269517102,3.08,143.13,143.12,10.36707214]
[1764269517303,1000.0,143.14,143.12,10.36707214]
[1764269517609,999.28,143.14,143.13,14.8598019]
[1764269518644,999.93,143.14,143.13,2.66992849]
[1764269518853,999.93,143.14,143.12,2.66992849]
[1764269519430,999.93,143.14,143.12,9.65696362]
[1764269519830,0.65,143.13,143.12,6.98703513]
[1764269520351,3.08,143.13,143.12,6.98703513]
[1764269520641,3.73,143.13,143.09,7.69860856]
[1764269520836,3.73,143.13,143.1,9.65772478]
[1764269521965,3.73,143.13,143.11,2.66992849]
[1764269522137,3.08,143.13,143.11,2.66992849]
[1764269522338,3.08,143.13,143.12,2.66992849]
[1764269522547,999.28,143.14,143.12,3.37992849]
[1764269522843,999.28,143.14,143.13,10.36658397]
[1764269527842,942.12335172,143.14,143.13,21.84645738]
[1764269529533,942.12335172,143.14,143.13,19.17652889]
[1764269530436,942.12335172,143.14,143.13,7.69665548]
[1764269530635,942.12335172,143.14,143.13,9.65658397]
[1764269531026,942.81335172,143.14,143.12,6.9870088]
[1764269531224,942.12335172,143.14,143.13,2.66992849]
[1764269531426,942.12335172,143.14,143.13,9.65658397]
[1764269531734,942.81335172,143.14,143.13,9.65658397]
[1764269532521,942.81335172,143.14,143.13,6.98665548]
[1764269532727,942.81335172,143.14,143.13,9.65658397]
[1764269533567,942.81335172,143.14,143.12,6.98693881]
[1764269533728,0.69,143.13,143.12,9.6568673]
[1764269534647,942.12335172,143.14,143.12,9.6568673]
[1764269534850,942.81335172,143.14,143.13,2.66992849]
[1764269535066,942.12335172,143.14,143.13,2.66992849]
[1764269535434,942.12335172,143.14,143.12,2.66992849]
[1764269535640,0.69,143.13,143.12,2.66992849]
[1764269535949,942.81335172,143.14,143.12,2.66992849]
[1764269536258,942.12335172,143.14,143.13,2.66992849]
[1764269536424,942.12335172,143.14,143.13,3.38992849]
[1764269537146,942.12335172,143.14,143.13,2.66992849]
[1764269537851,942.12335172,143.14,143.13,9.65658397]
[1764269542136,942.12335172,143.14,143.13,10.37658397]
[1764269542533,942.12335172,143.14,143.13,9.65658397]
[1764269544949,945.89335172,143.14,143.11,2.66992849]
[1764269545145,0.69,143.13,143.11,2.66992849]
[1764269545392,0.69,143.13,143.11,9.65745125]
[1764269545656,0.69,143.13,143.12,2.66992849]
[1764269547155,0.69,143.13,143.1,6.9879203]
[1764269547349,3.08,143.12,143.1,2.66992849]
[1764269547753,0.69,143.11,143.1,2.66992849]
[1764269548565,942.12335172,143.14,143.1,2.66992849]
[1764269548740,3.08,143.13,143.11,0.72]
[1764269549565,942.12335172,143.14,143.12,6.98714365]
[1764269550055,942.12335172,143.14,143.13,3.38992849]
[1764269550254,942.12335172,143.14,143.13,2.66992849]
[1764269552062,942.12335172,143.14,143.13,9.65658397]
[1764269552658,942.12335172,143.14,143.13,10.37658397]
[1764269555162,942.12335172,143.14,143.13,19.18652889]
[1764269555339,884.96670344,143.14,143.13,16.5166004]
[1764269555540,884.96670344,143.14,143.13,19.18652889]
[1764269557039,885.65670344,143.14,143.13,9.65658397]
[1764269557245,884.96670344,143.14,143.13,9.65658397]
[1764269558556,885.65670344,143.14,143.13,9.65658397]
[1764269559163,884.96670344,143.14,143.13,9.65658397]
[1764269560567,884.96670344,143.14,143.13,8.6933736]
[1764269561551,885.62670344,143.14,143.13,8.6933736]
[1764269565777,885.62670344,143.14,143.13,6.98665548]
[1764269565978,885.62670344,143.14,143.13,8.6933736]
[1764269566182,884.96670344,143.14,143.13,9.3933736]
[1764269566756,884.96670344,143.14,143.13,8.6933736]
[1764269572781,885.62670344,143.14,143.13,8.6933736]
[1764269573770,884.96670344,143.14,143.13,8.6933736]
[1764269574365,884.96670344,143.14,143.13,6.98665548]
[1764269574670,885.62670344,143.14,143.13,8.6933736]
[1764269574884,884.96670344,143.14,143.13,8.6933736]
[1764269576265,885.62670344,143.14,143.13,8.6933736]
[1764269576684,885.62670344,143.14,143.13,1.70671812]
[1764269576888,885.62670344,143.14,143.11,1.70671812]
[1764269577061,3.74,143.13,143.11,1.70671812]
[1764269577469,0.66,143.12,143.11,1.70671812]
[1764269578179,0.66,143.12,143.11,8.69435001]
[1764269579081,0.66,143.12,143.09,8.69532668]
[1764269579287,3.08,143.11,143.09,8.69532668]
[1764269579587,0.66,143.1,143.09,8.69532668]
[1764269584178,0.66,143.1,143.09,1.70671812]
[1764269584677,0.66,143.1,143.08,1.70671812]
[1764269585270,0.66,143.1,143.07,8.69611252]
[1764269585488,7.93264508,143.1,143.07,1.70671812]
[1764269585995,0.66,143.09,143.07,1.70671812]
[1764269586213,3.08,143.08,143.07,1.70671812]
[1764269586679,3.74,143.08,143.07,1.70671812]
[1764269589080,3.74,143.08,143.04,0.7]
[1764269589285,0.66,143.07,143.06,1.70671812]
[1764269590693,0.66,143.07,143.04,25.16851526]
[1764269590872,0.66,143.07,143.06,1.70671812]
[1764269591072,3.08,143.09,143.06,8.69679221]
[1764269591291,3.08,143.09,143.07,1.70671812]
[1764269591493,0.67,143.08,143.07,1.70671812]
[1764269592190,0.67,143.08,143.07,8.69630363]
[1764269593896,0.67,143.08,143.07,1.70671812]
[1764269594095,0.67,143.08,143.06,6.98998775]
[1764269594305,0.67,143.08,143.07,1.70671812]
[1764269594986,0.67,143.08,143.06,8.69670587]
[1764269595175,0.95432314,143.08,143.05,1.70671812]
[1764269595379,0.95432314,143.08,143.05,8.69707217]
[1764269595586,0.67,143.07,143.05,8.69707217]
[1764269595800,0.67,143.07,143.05,6.99035405]
[1764269596278,0.67,143.07,143.05,8.69707217]
[1764269597487,0.67,143.07,143.05,6.99035405]
[1764269597692,0.67,143.07,143.05,8.69707217]
[1764269600704,0.67,143.07,143.03,18.19850888]
[1764269600705,7.65982622,143.07,143.03,1.70671812]
[1764269600907,3.08,143.06,143.01,16.308864]
[1764269601107,1.70671812,143.04,142.99,1.70671812]
[1764269601309,0.95432314,143.05,143.03,1.70671812]
[1764269601494,0.67,143.04,143.02,1.70671812]
[1764269601689,0.67,143.04,143.01,1.70671812]
[1764269601887,0.67,143.04,142.99,0.72]
[1764269602205,0.67,143.04,143.0,8.69958494]
[1764269602412,0.67,143.04,143.01,1.70671812]
[1764269602997,0.67,143.04,143.02,1.70671812]
[1764269604122,0.28432314,143.03,142.98,17.68496293]
[1764269604421,0.28432314,143.03,143.01,1.70671812]
[1764269604588,0.67,143.02,143.01,1.70671812]
[1764269604788,4.03432314,143.03,143.01,1.70671812]
[1764269604992,4.03432314,143.03,143.02,1.70671812]
[1764269605286,0.67,143.02,143.01,1.70671812]
[1764269605509,3.08,143.03,143.01,1.70671812]
[1764269605716,3.75,143.03,143.02,1.70671812]
[1764269607192,3.75,143.03,143.0,7.71300699]
[1764269607391,3.75,143.03,143.02,1.70671812]
[1764269608813,3.08,143.03,143.02,1.70671812]
[1764269609695,3.75,143.03,143.02,1.70671812]
[1764269611603,3.75,143.03,143.01,8.69903087]
[1764269613111,3.08,143.03,143.02,1.70671812]
[1764269613293,3.75,143.03,143.02,1.70671812]
[1764269613614,3.75,143.03,143.01,8.69903087]
[1764269617026,3.75,143.03,143.01,1.70671812]
[1764269617920,3.08,143.03,143.0,9.41957185]
[1764269618218,0.67,143.02,143.0,9.41957185]
[1764269618412,3.75,143.03,143.0,9.41957185]
[1764269619217,34.06888726,143.06,143.02,8.69865968]
[1764269619218,16.308864,143.06,143.02,8.69865968]
[1764269619414,0.67,143.05,143.03,1.70671812]
[1764269620504,0.67,143.05,143.03,2.67101139]
[1764269620824,0.67,143.05,143.02,10.38295295]
[1764269622024,0.67,143.05,143.03,2.67101139]
[1764269623404,0.67,143.05,143.03,9.66229517]
[1764269624024,0.67,143.05,143.03,6.99128378]
[1764269624209,2.67101139,143.04,142.99,17.4830662]
[1764269624415,2.67101139,143.04,142.99,20.15407759]
[1764269624606,0.69,143.03,142.99,20.82407759]
[1764269625113,0.69,143.03,143.0,2.67101139]
[1764269625500,0.69,143.03,143.0,9.66401838]
[1764269625901,0.69,143.03,142.99,9.66436472]
[1764269625902,3.08,143.02,142.99,9.66436472]
[1764269626324,3.77,143.02,142.99,10.33436472]
[1764269626533,3.77,143.02,143.0,2.67101139]
[1764269627810,3.77,143.02,143.0,9.66397902]
[1764269629732,3.77,143.02,143.0,6.99296763]
[1764269629929,0.69,143.01,142.99,6.99334633]
[1764269630106,0.69,143.01,142.99,9.66435772]
[1764269630511,0.69,143.01,142.99,10.33435772]
[1764269630810,3.77,143.02,142.99,10.33435772]
[1764269631407,3.77,143.02,143.0,2.67101139]
[1764269632909,3.77,143.02,143.01,2.67101139]
[1764269633325,3.77,143.02,143.0,2.67101139]
[1764269633808,0.69,143.01,142.99,9.66435772]
[1764269634216,0.69,143.01,142.99,6.99334633]
[1764269634933,0.69,143.01,142.99,9.66435772]
[1764269636212,0.69,143.04,143.0,3.34101139]
[1764269636411,3.08,143.03,143.02,2.67101139]
[1764269638438,3.08,143.03,143.02,6.99202908]
[1764269640332,3.77,143.03,143.01,6.99242917]
[1764269640539,0.69,143.02,143.01,6.99242917]
[1764269641321,3.77,143.03,143.01,6.99242917]
[1764269641938,3.77,143.03,143.01,9.66344056]
[1764269642615,3.77,143.03,143.01,6.99242917]
[1764269642836,3.77,143.03,143.01,9.66344056]
[1764269653027,3.79,143.03,143.01,9.66344056]
[1764269654723,3.79,143.03,143.01,6.99242917]
[1764269659224,3.79,143.03,143.01,10.33344056]
[1764269659638,0.28432314,143.04,143.02,2.67101139]
[1764269659955,34.94220053,143.1,143.02,2.67101139]
[1764269659956,0.71,143.13,143.03,30.4608317]
[1764269660138,0.71,143.12,143.11,2.67101139]
[1764269660520,0.71,143.12,143.1,2.67101139]
[1764269660726,0.71,143.12,143.09,2.67101139]
[1764269661259,3.08,143.11,143.09,2.67101139]
[1764269661641,0.71,143.1,143.08,2.67101139]
[1764269661947,0.71,143.1,143.08,9.66008059]
[1764269662554,0.71,143.1,143.08,6.9890692]
[1764269662740,0.71,143.1,143.08,9.66008059]
[1764269663128,0.99432314,143.1,143.08,2.67101139]
[1764269663528,0.71,143.09,143.08,2.67101139]
[1764269663753,0.71,143.09,143.07,6.98943287]
[1764269664057,0.71,143.09,143.08,2.67101139]
[1764269664260,0.28432314,143.1,143.08,9.66010839]
[1764269664430,0.71,143.09,143.08,9.66010839]
[1764269666424,0.71,143.09,143.07,2.67101139]
[1764269668351,0.71,143.09,143.07,6.98924342]
[1764269668352,3.08,143.08,143.07,6.98924342]
[1764269668848,3.79,143.08,143.07,6.98924342]
[1764269670857,0.14216157,143.1,143.07,10.33025481]
[1764269671155,3.08,143.11,143.09,2.67101139]
[1764269671337,3.08,143.11,143.1,2.67101139]
[1764269672138,3.08,143.11,143.1,9.65913158]
[1764269672336,3.79,143.11,143.07,18.14396379]
[1764269672563,3.79,143.11,143.08,10.32995637]
[1764269672765,3.79,143.11,143.09,2.67101139]
[1764269673655,3.79,143.11,143.09,9.65960349]
[1764269674562,3.08,143.11,143.1,2.67101139]
[1764269675562,3.79,143.11,143.1,2.67101139]
[1764269675865,3.79,143.11,143.1,9.65913158]
[1764269676863,3.08,143.11,143.1,9.65913158]
[1764269678067,3.08,143.13,143.1,27.79943206]
[1764269678273,3.08,143.13,143.12,2.67101139]
[1764269679552,3.79,143.13,143.12,2.67101139]
[1764269679753,3.79,143.13,143.1,27.12943206]
[1764269679952,0.71,143.12,143.1,27.12943206]
[1764269680367,3.76,143.13,143.11,2.67101139]
[1764269680567,3.76,143.13,143.11,1.70763416]
[1764269680769,3.76,143.13,143.12,6.98714365]
[1764269681162,3.08,143.13,143.12,8.69477781]
[1764269681866,3.08,143.13,143.12,9.38477781]
[1764269682176,3.08,143.13,143.12,8.69477781]
[1764269693480,3.76,143.13,143.12,8.69477781]
[1764269695365,3.08,143.13,143.12,8.69477781]
[1764269695570,3.76,143.13,143.12,8.69477781]
[1764269696567,4.04432314,143.13,143.11,8.69510632]
[1764269697267,0.68,143.12,143.11,6.98747216]
[1764269698784,0.96432314,143.12,143.08,8.69673116]
[1764269698977,3.08,143.11,143.08,9.38673116]
[1764269699177,3.76,143.11,143.09,1.70763416]
[1764269699705,0.68,143.1,143.09,1.70763416]
[1764269700390,0.68,143.1,143.09,8.69624272]
[1764269700687,0.68,143.1,143.09,1.70763416]
[1764269700893,0.68,143.1,143.09,8.69624272]
[1764269701085,0.68,143.1,143.09,6.98860856]
[1764269702484,0.68,143.1,143.08,2.39763416]
[1764269702691,0.68,143.1,143.08,8.69650419]
[1764269702894,901.27556744,143.14,143.09,2.39763416]
[1764269703082,3.36432314,143.13,143.12,1.70763416]
[1764269703282,3.22216157,143.13,143.12,1.70763416]
[1764269703485,3.22216157,143.13,143.09,1.70763416]
[1764269703486,3.90216157,143.13,143.09,1.70763416]
[1764269703685,0.82216157,143.12,143.09,2.39763416]
[1764269703999,0.82216157,143.12,143.1,1.70763416]
[1764269704990,0.82216157,143.12,143.09,0.69]
[1764269705190,0.14216157,143.12,143.11,1.70763416]
[1764269705392,0.82216157,143.12,143.09,1.70763416]
[1764269705879,0.82216157,143.12,143.08,9.38651131]
[1764269706080,0.82216157,143.12,143.09,1.70763416]
[1764269706484,0.14216157,143.11,143.08,9.38651131]
[1764269706687,3.08,143.1,143.08,9.38651131]
[1764269707486,3.76,143.1,143.08,8.69651131]
[1764269707695,0.68,143.09,143.08,8.69651131]
[1764269708002,0.96432314,143.09,143.06,2.39763416]
[1764269708584,0.96432314,143.09,143.06,9.38767981]
[1764269709186,0.28432314,143.09,143.06,8.69767981]
[1764269709386,0.68,143.08,143.06,8.69767981]
[1764269709999,3.08,143.1,143.07,2.39763416]
[1764269710197,3.08,143.1,143.08,1.70763416]
[1764269710377,3.76,143.1,143.08,1.70763416]
[1764269712004,3.76,143.1,143.07,9.38684565]
[1764269712176,3.76,143.1,143.07,9.41684565]
[1764269712375,3.08,143.1,143.09,1.70763416]
[1764269712609,3.36432314,143.13,143.09,1.70763416]
[1764269712811,3.36432314,143.13,143.1,2.42763416]
[1764269712812,4.02432314,143.13,143.1,2.42763416]
[1764269713181,0.66,143.12,143.1,1.70763416]
[1764269713716,0.66,143.12,143.09,1.70763416]
[1764269714219,0.66,143.12,143.1,1.70763416]
[1764269714801,0.66,143.12,143.09,2.42763416]
[1764269715810,10.35098232,143.13,143.07,6.98955398]
[1764269716113,10.35098232,143.13,143.06,0.72]
[1764269716114,16.59318714,143.11,143.06,0.72]
[1764269716312,3.08,143.1,143.06,0.72]
[1764269716498,3.74,143.1,143.07,1.70763416]
[1764269716703,0.66,143.09,143.07,1.70763416]
[1764269717293,3.08,143.1,143.07,1.70763416]
[1764269717515,3.74,143.1,143.07,2.42763416]
[1764269718017,0.66,143.09,143.07,1.70763416]
[1764269718422,0.94432314,143.09,143.06,2.42763416]
[1764269720089,0.94432314,143.09,143.06,0.72]
[1764269720404,0.94432314,143.09,143.07,1.70763416]
[1764269720724,0.28432314,143.09,143.07,1.70763416]
[1764269721192,0.66,143.09,143.06,2.42763416]
[1764269721589,0.66,143.09,143.07,1.70763416]
[1764269722916,0.66,143.09,143.07,2.42763416]
[1764269723207,3.08,143.1,143.07,2.42763416]
[1764269723393,3.74,143.1,143.07,2.42763416]
[1764269723919,0.66,143.09,143.07,1.70763416]
[1764269724803,0.66,143.09,143.06,0.72]
[1764269725021,10.06815396,143.1,143.07,0.72]
[1764269725022,10.72815396,143.1,143.07,0.72]
[1764269725518,3.74,143.1,143.07,0.72]
[1764269725822,3.74,143.1,143.07,2.42763416]
[1764269726417,3.74,143.1,143.07,1.70763416]
[1764269726418,0.66,143.09,143.07,1.70763416]
[1764269726894,0.66,143.09,143.07,2.42763416]
[1764269727097,3.74,143.1,143.07,2.42763416]
[1764269730517,0.66,143.09,143.07,2.42763416]
[1764269731019,3.08,143.1,143.08,2.42763416]
[1764269731527,3.74,143.1,143.08,1.70763416]
[1764269732218,3.08,143.1,143.08,9.41667033]
[1764269732419,16.308864,143.11,143.08,9.41667033]
[1764269732725,3.08,143.1,143.08,9.41667033]
[1764269733223,3.08,143.1,143.09,0.72]
[1764269733606,0.28432314,143.13,143.09,9.41624272]
[1764269733821,892.61308345,143.14,143.11,1.70763416]
[1764269733822,3.08,143.12,143.11,1.70763416]
[1764269735626,3.08,143.12,143.1,2.42763416]
[1764269736914,3.08,143.12,143.1,0.72]
[1764269737124,3.08,143.12,143.1,2.42763416]
[1764269738729,3.08,143.12,143.11,1.70763416]
[1764269739024,3.08,143.12,143.1,2.42763416]
[1764269739418,3.74,143.12,143.1,2.42763416]
[1764269739832,3.74,143.12,143.09,6.98850416]
[1764269739833,0.66,143.11,143.07,2.42763416]
[1764269740633,7.64794191,143.11,143.07,0.72]
[1764269740821,9.35557607,143.11,143.07,1.70763416]
[1764269741022,0.66,143.1,143.07,1.70763416]
[1764269741335,10.7267404,143.13,143.09,1.70763416]
[1764269741526,10.7267404,143.13,143.1,1.70763416]
[1764269741728,10.0667404,143.13,143.08,0.68]
[1764269741930,0.66,143.12,143.1,1.70763416]
[1764269742506,0.66,143.12,143.1,2.66858102]
[1764269742711,7.64721276,143.12,143.09,0.68]
[1764269742911,7.64721276,143.12,143.09,2.66858102]
[1764269743133,0.66,143.11,143.09,2.66858102]
[1764269743340,3.08,143.1,143.09,2.66858102]
[1764269743729,3.08,143.1,143.08,3.34858102]
[1764269745235,3.08,143.1,143.09,2.66858102]
[1764269745429,3.08,143.1,143.09,3.34858102]
[1764269746523,3.08,143.12,143.09,10.3370268]
[1764269746831,3.08,143.12,143.11,2.66858102]
[1764269747737,0.66,143.13,143.11,2.66858102]
[1764269748037,3.08,143.12,143.11,2.66858102]
[1764269751620,3.08,143.12,143.11,3.34858102]
[1764269752024,3.08,143.12,143.11,2.66858102]
[1764269752744,0.66,143.13,143.11,3.34858102]
[1764269753045,3.08,143.12,143.11,0.68]
[1764269753936,3.08,143.12,143.11,3.34858102]
[1764269754233,3.08,143.12,143.11,2.66858102]
[1764269754945,3.08,143.12,143.11,3.34858102]
[1764269755851,3.08,143.12,143.11,10.33621291]
[1764269756148,884.96670344,143.14,143.11,10.33621291]
[1764269756349,884.96670344,143.14,143.13,2.66858102]
[1764269756725,884.96670344,143.14,143.13,3.34858102]
[1764269756920,884.96670344,143.14,143.13,10.3352365]
[1764269757545,884.96670344,143.14,143.13,3.34858102]
[1764269758050,884.96670344,143.14,143.13,2.66858102]
[1764269764056,884.96670344,143.14,143.12,7.66694019]
[1764269764350,885.62670344,143.14,143.13,2.66858102]
[1764269764557,885.62670344,143.14,143.09,17.47079385]
[1764269764558,885.62670344,143.14,143.1,0.68]
[1764269764760,3.74,143.13,143.11,2.66858102]
[1764269765139,0.66,143.12,143.11,2.66858102]
[1764269765338,3.08,143.13,143.12,0.68]
[1764269765541,3.08,143.13,143.12,3.34858102]
[1764269767362,3.08,143.13,143.12,10.33572467]
[1764269768036,884.96670344,143.14,143.12,10.33572467]
[1764269768235,884.96670344,143.14,143.13,3.34858102]
[1764269768432,884.96670344,143.14,143.13,10.3352365]
[1764269770738,884.96670344,143.14,143.13,9.6552365]
[1764269775458,884.96670344,143.14,143.13,10.3652365]
[1764269776041,884.96670344,143.14,143.13,9.6552365]
[1764269776262,884.96670344,143.14,143.13,10.3652365]
[1764269777451,884.96670344,143.14,143.11,24.45567634]
[1764269777651,0.7,143.13,143.09,2.66858102]
[1764269777851,884.96670344,143.14,143.11,2.66858102]
[1764269778074,0.7,143.13,143.09,2.66858102]
[1764269778249,3.78,143.13,143.09,2.66858102]
[1764269778556,6.44858102,143.13,143.08,10.36767802]
[1764269778756,0.7,143.12,143.09,2.66858102]
[1764269779349,0.7,143.12,143.09,9.65699887]
[1764269780362,0.7,143.12,143.09,6.98841785]
[1764269780858,0.7,143.12,143.09,9.65699887]
[1764269781446,0.7,143.12,143.09,6.98841785]
[1764269781975,0.7,143.12,143.09,9.65699887]
[1764269784458,0.7,143.12,143.1,2.66858102]
[1764269787383,0.7,143.12,143.1,9.65668995]
[1764269788268,3.08,143.13,143.1,10.36668995]
[1764269788468,3.78,143.13,143.1,10.36668995]
[1764269789066,3.08,143.13,143.1,10.36668995]
[1764269789268,884.96670344,143.14,143.11,2.66858102]
[1764269789578,3.78,143.13,143.11,2.66858102]
[1764269789798,3.78,143.13,143.1,2.66858102]
[1764269789962,0.7,143.12,143.1,2.66858102]
[1764269790160,0.7,143.12,143.11,2.66858102]
[1764269791480,0.7,143.12,143.1,2.66858102]
[1764269791902,3.78,143.13,143.11,2.66858102]
[1764269792225,0.7,143.13,143.12,2.66858102]
[1764269792489,3.08,143.13,143.12,2.66858102]
[1764269792701,3.78,143.13,143.11,10.36608319]
[1764269792985,3.78,143.13,143.11,9.65608319]
[1764269795362,3.08,143.13,143.12,2.66858102]
[1764269798691,3.08,143.13,143.12,9.65572467]
[1764269800387,885.65670344,143.14,143.12,9.65572467]
[1764269800587,888.04670344,143.14,143.12,9.65572467]
[1764269800778,888.73670344,143.14,143.12,9.65572467]
[1764269800973,888.04670344,143.14,143.12,10.36572467]
[1764269802598,888.04670344,143.14,143.12,9.40444952]
[1764269802776,888.04670344,143.14,143.13,1.70730587]
[1764269803471,884.96670344,143.14,143.13,1.70730587]
[1764269803790,884.96670344,143.14,143.13,8.69396135]
[1764269805795,884.96670344,143.14,143.13,9.40396135]
[1764269806294,884.96670344,143.14,143.13,8.69396135]
[1764269807582,885.65670344,143.14,143.13,8.69396135]
[1764269808804,885.65670344,143.14,143.12,2.41730587]
[1764269809176,885.65670344,143.14,143.12,1.70730587]
[1764269809573,0.69,143.13,143.12,1.70730587]
[1764269811190,884.96670344,143.14,143.12,7.69695681]
[1764269811388,884.96670344,143.14,143.13,1.70730587]
[1764269811905,885.65670344,143.14,143.13,1.70730587]
[1764269815702,885.65670344,143.14,143.13,8.69396135]
[1764269817507,885.65670344,143.14,143.13,1.70730587]
[1764269817708,885.65670344,143.14,143.13,41.35199375]
[1764269817709,851.62532527,143.14,143.13,41.35199375]
[1764269818005,729.55570072,143.14,143.13,25.32745289]
[1764269818302,589.94803789,143.14,143.13,25.32745289]
[1764269818484,482.48074064,143.14,143.13,46.30867469]
[1764269818682,449.13936247,143.14,143.13,46.30867469]
[1764269819102,346.03348915,143.14,143.13,46.30867469]
[1764269819681,272.8870982,143.14,143.13,46.30867469]
[1764269819882,166.36931795,143.14,143.13,46.30867469]